{"text_format":"1","workbook":"xlsx","n_sheets":8,"sheets":["Vejledning","Lærere Ny Løn","Lærere OK ansatte anc.løn","Lærere Tjenestemænd","Bh. kl. ledere Ny Løn ","Bh. kl. ledere Anc. løn","Bh. kl. ledere tjenestemænd","satser"],"not_rendered":{"charts":0,"images":0,"macros":1,"external_links":0,"defined_names":0,"comments":7,"pivot_tables":0},"unopened":[],"bounds":{"document_bytes":16777216,"sheet_cells":100000,"rows_first":2000,"rows_last":500,"rows_between":2000,"halvings":0,"cell_chars":16384,"cell_head_chars":4096},"cells_cut":0,"cells_raw":0,"read":"whole","date_system":"1900"}

{"sheet":"Vejledning","index":0,"n_rows":33,"n_cols":1,"rows_kept":33,"cut":false,"hidden":false,"merged":[]}
["Vejledning til regneark, lønberegning."]
[]
["Regnearket anvendes til kontrol af lønsedler . Man skal bruge sin lønseddel og opgaveoversigten"]
["Regnearket kan anvendes af lærere og børnehaveklasseledere ansat på folkeskoler i Odense."]
["Medlemmer ansat andre steder kan få hjælp til at kontrollere deres lønsedler i Odense Lærerforening"]
[]
[]
["Find det relevante ark i regnearket"]
["(Lærere Ny Løn, Lærere OK ansatte anc. Løn, Lærere tjenestemænd,"]
["Børnehaveklasseledere Ny Løn, Børnehaveklasseledere anc. Løn, "]
["Børnehaveklasseledere tjenestemænd)"]
[]
["Der kan kun indtastes i de gule felter!"]
[]
["Beskæftigelsesgrad indtastes med ugentligt timetal (fremgår af lønsedlen)"]
["Grundløn fremkommer automatisk, tillæg for anciennitet skal indtastes med 1 ved relevant anciennitetstillæg (fremgår af lønsedlen)"]
["Forhåndsaftalt funktions- og kvalifikationsløn indtastes med 1 ud for funktionen (kvalifikationen)"]
["Ved delt funktion anvendes decimaltal."]
["Odensetillæg fremgår automatisk"]
[]
["Skoleaftaler og andet, der ikke er nævnt i regnearket indtastes med det månedlige beløb, der fremgår af lønsedlen."]
["Der kan evt. indtastes navn på disse tillæg."]
[]
["Undervisningstillæg, specialundervisningstillæg m.m. indtastes i de relevante felter med det årlige undervisningstimetal"]
["Timetallet fremgår af opgaveoversigten"]
[]
["Månedslønnen fremkommer automatisk og er sammenlignelig med lønsedlen"]
[]
["Bemærk: Der kan fremkomme øreafvigelser p.g.a. afrunding."]
[]
["Arbejdstidsbestemte tillæg udbetales konkret og fremgår ikke af lønberegneren"]
[]
["Kommentarer eller rettelser er velkomne, kontakt Bo Tryggedsson, Odense Lærerforening."]

{"sheet":"Lærere Ny Løn","index":1,"n_rows":44,"n_cols":3,"rows_kept":44,"cut":false,"hidden":false,"merged":[[1,0,2,2],[0,0,0,1]]}
["Lønberegning niveau",null,{"$f":"satser!F1","v":"01.01.2016"}]
["Lærere Ny løn"]
[]
[]
["Navn: "]
["Måned"]
[]
["Beskæftigelsesgrad (indsæt ugentligt timetal)",37]
[null,null,"Månedsløn"]
["Grundløn trin 30",30,{"$f":"satser!B10*B8/37","v":26090.67}]
["Grundlønstillæg - lærer",null,{"$f":"IF(B14=1,\"\",satser!I3*B8/37)","v":""}]
["Lærere på grundløn",null,{"$f":"IF((B12+B13+B14)>1,\"Fejl: kun et tillæg\",IF(B12=1,satser!D11*B8/37,\"\"))","v":""}]
["Anciennitetstillæg (trin 30-34)",null,{"$f":"IF((B12+B13+B14)>1,\"Fejl: kun et tillæg\",IF(B13=1,satser!D14*B8/37,\"\"))","v":""}]
["Anciennitetstillæg (trin 30-39)",1,{"$f":"IF((B12+B13+B14)>1,\"Fejl: kun et tillæg\",IF(B14=1,satser!D19*B8/37,\"\"))","v":4123.4100000000035}]
["Anciennitetstillæg - lærer",1,{"$f":"IF(AND(B15=1,B14=1),satser!I4*B8/37,\"\")","v":1098.165}]
["Centralt lærertillæg",null,{"$f":"satser!I13*B8/37","v":307.4862}]
["Undervisertillæg",null,{"$f":"satser!I9*B8/37","v":1427.6144999999999}]
[]
["Funktions- og kvalifikationsløn: Tast 1 i det gule felt, hvis omfattet:"]
["Nyt Odense tillæg",null,{"$f":"satser!I20*B8/37","v":1109.1500000000001}]
["Mange 2-sprogede elever",null,{"$f":"(IF(B21>1,\"Fejl:kun et tillæg\",IF(B21>0,B21*satser!I21,\"\")))","v":""}]
["Kl. lærer/bh.kl.leder >27",null,{"$f":"(IF(B22>1,\"Fejl:kun et tillæg\",IF(B22>0,B22*satser!I22,\"\")))","v":""}]
["Kontaktperson til elevråd",null,{"$f":"(IF(B23>1,\"Fejl:kun et tillæg\",IF(B23>0,B23*satser!I23,\"\")))","v":""}]
["Obs-klasser",null,{"$f":"(IF(B24>1,\"Fejl:kun et tillæg\",IF(B24>0,B24*satser!I24*B8/37,\"\")))","v":""}]
["Flere/skiftende arbejdssteder",null,{"$f":"(IF(B25>1,\"Fejl:kun et tillæg\",IF(B25>0,B25*satser!I25*B8/37,\"\")))","v":""}]
["TR-tillæg",null,{"$f":"(IF(B26>1,\"Fejl:kun et tillæg\",IF(B26>0,B26*satser!I26,\"\")))","v":""}]
["Valgområde - mere end 35 ansatte",null,{"$f":"(IF(B27>1,\"Fejl:kun et tillæg\",IF(B27>0,B27*satser!I27,\"\")))","v":""}]
["AMR funktion",null,{"$f":"(IF(B28>1,\"Fejl:kun et tillæg\",IF(B28>0,B28*satser!I28,\"\")))","v":""}]
["Spec-uv skolebørn",null,{"$f":"(IF(B29>1,\"Fejl:kun et tillæg\",IF(B29>0,B29*satser!I29,\"\")))","v":""}]
[]
["Specialv./erfaring fra Vollsmose skoler",null,{"$f":"(IF(B31>1,\"Fejl:kun et tillæg\",IF(B31>0,B31*satser!I31*B8/37,\"\")))","v":""}]
["Pæd. Diplomudd./Masterudd.",null,{"$f":"(IF(B32>1,\"Fejl:kun et tillæg\",IF(B32>0,B32*satser!I32*B8/37,\"\")))","v":""}]
[]
["Undervisnings- og specialundervisningstillæg m.m. Indsæt tal fra opgaveoversigten i de gule felter"]
["I alt undervisning "]
["uv-tillæg > 750",{"$f":"(IF((B35/B8*37)>750,((B35/B8*37)-750)*B8/37,0))/12","v":0},{"$f":"IF(B36>0,B36*satser!I36,\"\")","v":""}]
["tale/høre tillæg",null,{"$f":"IF(B37>0,(B37/12)*satser!I37,\"\")","v":""}]
["Spec-skole uv-tillæg",null,{"$f":"IF(B38>0,(B38/12)*satser!I38,\"\")","v":""}]
[]
["Andre tillæg (fx skoleaftaler) Indtast beløb fra lønseddel"]
[]
[]
[]
["Fast løn i alt",null,{"$f":"SUM(C10:C43)","v":34156.495700000007}]

{"sheet":"Lærere OK ansatte anc.løn","index":2,"n_rows":44,"n_cols":3,"rows_kept":44,"cut":false,"hidden":false,"merged":[[1,0,2,2],[0,0,0,1]]}
["Lønberegning niveau ",null,{"$f":"satser!F1","v":"01.01.2016"}]
["Lærere OK ansatte anc. Løn"]
[]
[]
["Navn: "]
["Måned"]
[]
["Beskæftigelsesgrad (indsæt ugentligt timetal)",30]
[]
[null,null,"Månedsløn"]
["Grundløn trin 42",42,{"$f":"satser!B22*B8/37","v":25769.862162162164}]
["Stillingstillæg - lærer",null,{"$f":"satser!I5*B8/37","v":1157.5252702702703}]
["Centralt lærertillæg",null,{"$f":"satser!I13*B8/37","v":249.31313513513513}]
["Undervisertillæg",null,{"$f":"satser!I10*B8/37","v":489.72222972972975}]
[]
[]
[]
[]
["Funktions- og kvalifikationsløn: Tast 1 i det gule felt, hvis omfattet:"]
["Nyt Odense tillæg",null,{"$f":"satser!I20*B8/37","v":899.31081081081084}]
["Mange 2-sprogede elever",null,{"$f":"(IF(B21>1,\"Fejl:kun et tillæg\",IF(B21>0,B21*satser!J21,\"\")))","v":""}]
["Kl. lærer/bh.kl.leder >27",null,{"$f":"(IF(B22>1,\"Fejl:kun et tillæg\",IF(B22>0,B22*satser!J22,\"\")))","v":""}]
["Kontaktperson til elevråd",null,{"$f":"(IF(B23>1,\"Fejl:kun et tillæg\",IF(B23>0,B23*satser!J23,\"\")))","v":""}]
["Obs-klasser",null,{"$f":"(IF(B24>1,\"Fejl:kun et tillæg\",IF(B24>0,B24*satser!J24*B8/37,\"\")))","v":""}]
["Flere/skiftende arbejdssteder",null,{"$f":"(IF(B25>1,\"Fejl:kun et tillæg\",IF(B25>0,B25*satser!J25*B8/37,\"\")))","v":""}]
["TR-tillæg",null,{"$f":"(IF(B26>1,\"Fejl:kun et tillæg\",IF(B26>0,B26*satser!J26,\"\")))","v":""}]
["Valgområde - mere end 35 ansatte",null,{"$f":"(IF(B27>1,\"Fejl:kun et tillæg\",IF(B27>0,B27*satser!J27,\"\")))","v":""}]
["AMR funktion",null,{"$f":"(IF(B28>1,\"Fejl:kun et tillæg\",IF(B28>0,B28*satser!J28,\"\")))","v":""}]
["Spec-uv skolebørn",null,{"$f":"(IF(B29>1,\"Fejl:kun et tillæg\",IF(B29>0,B29*satser!J29,\"\")))","v":""}]
[]
["Specialv./erfaring fra Vollsmose skoler",1,{"$f":"(IF(B31>1,\"Fejl:kun et tillæg\",IF(B31>0,B31*satser!J31*B8/37,\"\")))","v":320.5459459459459}]
["Pæd. Diplomudd./Masterudd.",null,{"$f":"(IF(B32>1,\"Fejl:kun et tillæg\",IF(B32>0,B32*satser!J32*B8/37,\"\")))","v":""}]
[]
["Undervisnings- og specialundervisningstillæg m.m. Indsæt tal fra opgaveoversigten i de gule felter"]
["I alt undervisning ",617.5]
["uv-tillæg > 750",{"$f":"(IF((B35/B8*37)>750,((B35/B8*37)-750)*B8/37,0))/12","v":0.78265765765765261},{"$f":"IF(B36>0,B36*satser!J36,\"\")","v":92.823198198197588}]
["tale/høre tillæg",null,{"$f":"IF(B37>0,(B37/12)*satser!J37,\"\")","v":""}]
["Spec-skole uv-tillæg",null,{"$f":"IF(B38>0,(B38/12)*satser!J38,\"\")","v":""}]
[]
["Andre tillæg (fx skoleaftaler) Indtast beløb fra lønseddel"]
[]
[" "]
[]
["Fast løn i alt",null,{"$f":"SUM(C10:C43)","v":28979.102752252256}]

{"sheet":"Lærere Tjenestemænd","index":3,"n_rows":44,"n_cols":3,"rows_kept":44,"cut":false,"hidden":false,"merged":[[1,0,2,2],[0,0,0,1]]}
["Lønberegning niveau",null,{"$f":"satser!F1","v":"01.01.2016"}]
["Lærere Tjenestemænd"]
[]
[]
["Navn: "]
["Måned"]
[]
["Beskæftigelsesgrad (indsæt ugentligt timetal)",37]
[]
[null,null,"Månedsløn"]
["Grundløn trin 42",42,{"$f":"satser!B22*B8/37","v":31782.829999999998}]
["Stillingstillæg - lærer",null,{"$f":"satser!I5*B8/37","v":1427.6144999999999}]
["Pension - stillingstillæg lærer ",null,{"$f":"IF(B13=1,satser!I6,\"\")","v":""}]
["Centralt lærertillæg",null,{"$f":"satser!J13*B8/37","v":356.90362499999998}]
["Undervisertillæg",null,{"$f":"satser!I10*B8/37","v":603.99075000000005}]
[]
[]
[]
["Funktions- og kvalifikationsløn: Tast 1 i det gule felt, hvis omfattet:"]
["Nyt Odense tillæg",null,{"$f":"satser!I20*B8/37","v":1109.1500000000001}]
["Mange 2-sprogede elever",null,{"$f":"(IF(B21>1,\"Fejl:kun et tillæg\",IF(B21>0,B21*satser!J21,\"\")))","v":""}]
["Kl. lærer/bh.kl.leder >27",null,{"$f":"(IF(B22>1,\"Fejl:kun et tillæg\",IF(B22>0,B22*satser!J22,\"\")))","v":""}]
["Kontaktperson til elevråd",null,{"$f":"(IF(B23>1,\"Fejl:kun et tillæg\",IF(B23>0,B23*satser!J23,\"\")))","v":""}]
["Obs-klasser",null,{"$f":"(IF(B24>1,\"Fejl:kun et tillæg\",IF(B24>0,B24*satser!J24*B8/37,\"\")))","v":""}]
["Flere/skiftende arbejdssteder",null,{"$f":"(IF(B25>1,\"Fejl:kun et tillæg\",IF(B25>0,B25*satser!J25*B8/37,\"\")))","v":""}]
["TR-tillæg",null,{"$f":"(IF(B26>1,\"Fejl:kun et tillæg\",IF(B26>0,B26*satser!J26,\"\")))","v":""}]
["Valgområde - mere end 35 ansatte",null,{"$f":"(IF(B27>1,\"Fejl:kun et tillæg\",IF(B27>0,B27*satser!J27,\"\")))","v":""}]
["AMR funktion",null,{"$f":"(IF(B28>1,\"Fejl:kun et tillæg\",IF(B28>0,B28*satser!J28,\"\")))","v":""}]
["Spec-uv skolebørn",null,{"$f":"(IF(B29>1,\"Fejl:kun et tillæg\",IF(B29>0,B29*satser!J29,\"\")))","v":""}]
[]
["Specialv./erfaring fra Vollsmose skoler",null,{"$f":"(IF(B31>1,\"Fejl:kun et tillæg\",IF(B31>0,B31*satser!J31*B8/37,\"\")))","v":""}]
["Pæd. Diplomudd./Masterudd.",null,{"$f":"(IF(B32>1,\"Fejl:kun et tillæg\",IF(B32>0,B32*satser!D23*B8/37,\"\")))","v":""}]
[]
["Undervisnings- og specialundervisningstillæg m.m. Indsæt tal fra opgaveoversigten i de gule felter"]
["I alt undervisning "]
["uv-tillæg > 750",{"$f":"(IF((B35/B8*37)>750,((B35/B8*37)-750)*B8/37,0))/12","v":0},{"$f":"IF(B36>0,B36*satser!J36,\"\")","v":""}]
["tale/høre tillæg",null,{"$f":"IF(B37>0,(B37/12)*satser!J37,\"\")","v":""}]
["Spec-skole uv-tillæg",null,{"$f":"IF(B38>0,(B38/12)*satser!J38,\"\")","v":""}]
[]
["Andre tillæg (fx skoleaftaler) Indtast beløb fra lønseddel"]
[]
[" "]
[]
["Fast løn i alt",null,{"$f":"SUM(C10:C43)","v":35280.488874999995}]

{"sheet":"Bh. kl. ledere Ny Løn ","index":4,"n_rows":45,"n_cols":3,"rows_kept":45,"cut":false,"hidden":false,"merged":[[1,0,2,2],[0,0,0,1]]}
["Lønberegning niveau",null,{"$f":"satser!F1","v":"01.01.2016"}]
["Børnehaveklasseledere Ny løn"]
[]
[]
["Navn: "]
["Måned"]
[]
["Beskæftigelsesgrad (indsæt ugentligt timetal)",37]
[null,null,"Månedsløn"]
["Grundløn trin 27",27,{"$f":"satser!B7*B8/37","v":24885.33}]
["Grundlønstillæg - børnehaveklasseleder",null,{"$f":"IF(B14=1,\"\",satser!I7*B8/37)","v":219.63300000000001}]
[]
["Anciennitetstillæg (trin 27-30)",null,{"$f":"IF((B13+B14)>1,\"Fejl: kun et tillæg\",IF(B13=1,satser!D10*B8/37,\"\"))","v":""}]
["Anciennitetstillæg (trin 27-32)",null,{"$f":"IF((B12+B13+B14)>1,\"Fejl: kun et tillæg\",IF(B14=1,satser!D12*B8/37,\"\"))","v":""}]
["Anciennitetstillæg - børnehaveklasseleder",null,{"$f":"IF(AND(B15=1,B14=1),satser!I8*B8/37,\"\")","v":""}]
["Centralt lærertillæg",null,{"$f":"satser!I13*B8/37","v":307.4862}]
["Undervisertillæg",null,{"$f":"satser!I11*B8/37","v":1691.1741000000002}]
[]
["Funktions- og kvalifikationsløn: Tast 1 i det gule felt, hvis omfattet:"]
["Nyt Odense tillæg",null,{"$f":"satser!I20*B8/37","v":1109.1500000000001}]
["Mange 2-sprogede elever",null,{"$f":"(IF(B21>1,\"Fejl:kun et tillæg\",IF(B21>0,B21*satser!I21,\"\")))","v":""}]
["Kl. lærer/bh.kl.leder >27",null,{"$f":"(IF(B22>1,\"Fejl:kun et tillæg\",IF(B22>0,B22*satser!I22,\"\")))","v":""}]
["Kontaktperson til elevråd",null,{"$f":"(IF(B23>1,\"Fejl:kun et tillæg\",IF(B23>0,B23*satser!I23,\"\")))","v":""}]
["Obs-klasser",null,{"$f":"(IF(B24>1,\"Fejl:kun et tillæg\",IF(B24>0,B24*satser!I24*B8/37,\"\")))","v":""}]
["Flere/skiftende arbejdssteder",null,{"$f":"(IF(B25>1,\"Fejl:kun et tillæg\",IF(B25>0,B25*satser!I25*B8/37,\"\")))","v":""}]
["TR-tillæg",null,{"$f":"(IF(B26>1,\"Fejl:kun et tillæg\",IF(B26>0,B26*satser!I26,\"\")))","v":""}]
["Valgområde - mere end 35 ansatte",null,{"$f":"(IF(B27>1,\"Fejl:kun et tillæg\",IF(B27>0,B27*satser!I27,\"\")))","v":""}]
["AMR funktion",null,{"$f":"(IF(B28>1,\"Fejl:kun et tillæg\",IF(B28>0,B28*satser!I28,\"\")))","v":""}]
["Spec-uv skolebørn",null,{"$f":"(IF(B29>1,\"Fejl:kun et tillæg\",IF(B29>0,B29*satser!I29,\"\")))","v":""}]
[]
["Specialv./erfaring fra Vollsmose skoler",null,{"$f":"(IF(B31>1,\"Fejl:kun et tillæg\",IF(B31>0,B31*satser!I31*B8/37,\"\")))","v":""}]
["Pæd. Diplomudd./Masterudd.",null,{"$f":"(IF(B32>1,\"Fejl:kun et tillæg\",IF(B32>0,B32*satser!I32*B8/37,\"\")))","v":""}]
[]
["Undervisnings- og specialundervisningstillæg m.m. Indsæt tal fra opgaveoversigten i de gule felter"]
["I alt undervisning "]
["uv-tillæg > 836",{"$f":"(IF((B35/B8*37)>835,((B35/B8*37)-835)*B8/37,0))/12","v":0},{"$f":"IF(B36>0,B36*satser!I36,\"\")","v":""}]
["tale/høre tillæg",null,{"$f":"IF(B37>0,(B37/12)*satser!I37,\"\")","v":""}]
["Spec-skole uv-tillæg",null,{"$f":"IF(B38>0,(B38/12)*satser!I38,\"\")","v":""}]
["to-sprogede elever",null,{"$f":"IF(B39>0,(B39/12)*satser!I40,\"\")","v":""}]
[]
["Andre tillæg (fx skoleaftaler) Indtast beløb fra lønseddel"]
[]
[" "]
[]
["Fast løn i alt",null,{"$f":"SUM(C10:C44)","v":28212.773300000004}]

{"sheet":"Bh. kl. ledere Anc. løn","index":5,"n_rows":45,"n_cols":3,"rows_kept":45,"cut":false,"hidden":false,"merged":[[1,0,2,2],[0,0,0,1]]}
["Lønberegning niveau",null,{"$f":"satser!F1","v":"01.01.2016"}]
["Børnehaveklasseledere anc. Løn"]
[]
[]
["Navn: "]
["Måned"]
[]
["Beskæftigelsesgrad (indsæt ugentligt timetal)",37]
[null,null,"Månedsløn"]
["Grundløn trin 35",35,{"$f":"satser!B15*B8/37","v":28271.58}]
["Centralt lærertillæg",null,{"$f":"satser!I13*B8/37","v":307.4862}]
["Undervisertillæg",null,{"$f":"satser!I12*B8/37","v":867.55034999999998}]
[]
[]
[]
[]
[]
[]
["Funktions- og kvalifikationsløn: Tast 1 i det gule felt, hvis omfattet:"]
["Nyt Odense tillæg",null,{"$f":"satser!I20*B8/37","v":1109.1500000000001}]
["Mange 2-sprogede elever",null,{"$f":"(IF(B21>1,\"Fejl:kun et tillæg\",IF(B21>0,B21*satser!J21,\"\")))","v":""}]
["Kl. lærer/bh.kl.leder >27",null,{"$f":"(IF(B22>1,\"Fejl:kun et tillæg\",IF(B22>0,B22*satser!J22,\"\")))","v":""}]
["Kontaktperson til elevråd",null,{"$f":"(IF(B23>1,\"Fejl:kun et tillæg\",IF(B23>0,B23*satser!J23,\"\")))","v":""}]
["Obs-klasser",null,{"$f":"(IF(B24>1,\"Fejl:kun et tillæg\",IF(B24>0,B24*satser!J24*B8/37,\"\")))","v":""}]
["Flere/skiftende arbejdssteder",null,{"$f":"(IF(B25>1,\"Fejl:kun et tillæg\",IF(B25>0,B25*satser!J25*B8/37,\"\")))","v":""}]
["TR-tillæg",null,{"$f":"(IF(B26>1,\"Fejl:kun et tillæg\",IF(B26>0,B26*satser!J26,\"\")))","v":""}]
["Valgområde - mere end 35 ansatte",null,{"$f":"(IF(B27>1,\"Fejl:kun et tillæg\",IF(B27>0,B27*satser!J27,\"\")))","v":""}]
["AMR funktion",null,{"$f":"(IF(B28>1,\"Fejl:kun et tillæg\",IF(B28>0,B28*satser!J28,\"\")))","v":""}]
["Spec-uv skolebørn",null,{"$f":"(IF(B29>1,\"Fejl:kun et tillæg\",IF(B29>0,B29*satser!J29,\"\")))","v":""}]
[]
["Specialv./erfaring fra Vollsmose skoler",null,{"$f":"(IF(B31>1,\"Fejl:kun et tillæg\",IF(B31>0,B31*satser!J31*B8/37,\"\")))","v":""}]
["Pæd. Diplomudd./Masterudd.",null,{"$f":"(IF(B32>1,\"Fejl:kun et tillæg\",IF(B32>0,B32*satser!J32*B8/37,\"\")))","v":""}]
[]
["Undervisnings- og specialundervisningstillæg m.m. Indsæt tal fra opgaveoversigten i de gule felter"]
["I alt undervisning "]
["uv-tillæg > 836",{"$f":"(IF((B35/B8*37)>835,((B35/B8*37)-835)*B8/37,0))/12","v":0},{"$f":"IF(B36>0,B36*satser!J36,\"\")","v":""}]
["tale/høre tillæg",null,{"$f":"IF(B37>0,(B37/12)*satser!J37,\"\")","v":""}]
["Spec-skole uv-tillæg",null,{"$f":"IF(B38>0,(B38/12)*satser!J38,\"\")","v":""}]
["to-sprogede elever",null,{"$f":"IF(B39>0,(B39/12)*satser!J40,\"\")","v":""}]
[]
["Andre tillæg (fx skoleaftaler) Indtast beløb fra lønseddel"]
[]
[" "]
[]
["Fast løn i alt",null,{"$f":"SUM(C10:C44)","v":30555.766550000004}]

{"sheet":"Bh. kl. ledere tjenestemænd","index":6,"n_rows":45,"n_cols":3,"rows_kept":45,"cut":false,"hidden":false,"merged":[[1,0,2,2],[0,0,0,1]]}
["Lønberegning niveau",null,{"$f":"satser!F1","v":"01.01.2016"}]
["Børnehaveklasseledere tjenestemænd"]
[]
[]
["Navn: "]
["Måned"]
[]
["Beskæftigelsesgrad (indsæt ugentligt timetal)",37]
[null,null,"Månedsløn"]
["Grundløn trin 35",35,{"$f":"satser!B15*B8/37","v":28271.58}]
["Centralt lærertillæg",null,{"$f":"satser!J13*B8/37","v":356.90362499999998}]
["Undervisertillæg",null,{"$f":"satser!I12*B8/37","v":867.55034999999998}]
[]
[]
[]
[]
[]
[]
["Funktions- og kvalifikationsløn: Tast 1 i det gule felt, hvis omfattet:"]
["Nyt Odense tillæg",null,{"$f":"satser!I20*B8/37","v":1109.1500000000001}]
["Mange 2-sprogede elever",null,{"$f":"(IF(B21>1,\"Fejl:kun et tillæg\",IF(B21>0,B21*satser!J21,\"\")))","v":""}]
["Kl. lærer/bh.kl.leder >27",null,{"$f":"(IF(B22>1,\"Fejl:kun et tillæg\",IF(B22>0,B22*satser!J22,\"\")))","v":""}]
["Kontaktperson til elevråd",null,{"$f":"(IF(B23>1,\"Fejl:kun et tillæg\",IF(B23>0,B23*satser!J23,\"\")))","v":""}]
["Obs-klasser",null,{"$f":"(IF(B24>1,\"Fejl:kun et tillæg\",IF(B24>0,B24*satser!J24*B8/37,\"\")))","v":""}]
["Flere/skiftende arbejdssteder",null,{"$f":"(IF(B25>1,\"Fejl:kun et tillæg\",IF(B25>0,B25*satser!J25*B8/37,\"\")))","v":""}]
["TR-tillæg",null,{"$f":"(IF(B26>1,\"Fejl:kun et tillæg\",IF(B26>0,B26*satser!J26,\"\")))","v":""}]
["Valgområde - mere end 35 ansatte",null,{"$f":"(IF(B27>1,\"Fejl:kun et tillæg\",IF(B27>0,B27*satser!J27,\"\")))","v":""}]
["AMR funktion",null,{"$f":"(IF(B28>1,\"Fejl:kun et tillæg\",IF(B28>0,B28*satser!J28,\"\")))","v":""}]
["Spec-uv skolebørn",null,{"$f":"(IF(B29>1,\"Fejl:kun et tillæg\",IF(B29>0,B29*satser!J29,\"\")))","v":""}]
[]
["Specialv./erfaring fra Vollsmose skoler",null,{"$f":"(IF(B31>1,\"Fejl:kun et tillæg\",IF(B31>0,B31*satser!J31*B8/37,\"\")))","v":""}]
["Pæd. Diplomudd./Masterudd.",null,{"$f":"(IF(B32>1,\"Fejl:kun et tillæg\",IF(B32>0,B32*satser!D16*B8/37,\"\")))","v":""}]
[]
["Undervisnings- og specialundervisningstillæg m.m. Indsæt tal fra opgaveoversigten i de gule felter"]
["I alt undervisning "]
["uv-tillæg > 836",{"$f":"(IF((B35/B8*37)>835,((B35/B8*37)-835)*B8/37,0))/12","v":0},{"$f":"IF(B36>0,B36*satser!J36,\"\")","v":""}]
["tale/høre tillæg",null,{"$f":"IF(B37>0,(B37/12)*satser!J37,\"\")","v":""}]
["Spec-skole uv-tillæg",null,{"$f":"IF(B38>0,(B38/12)*satser!J38,\"\")","v":""}]
["to-sprogede elever",null,{"$f":"IF(B39>0,(B39/12)*satser!J40,\"\")","v":""}]
[]
["Andre tillæg (fx skoleaftaler) Indtast beløb fra lønseddel"]
[]
[" "]
[]
["Fast løn i alt",null,{"$f":"SUM(C10:C44)","v":30605.183975000004}]

{"sheet":"satser","index":7,"n_rows":40,"n_cols":11,"rows_kept":40,"cut":false,"hidden":false,"merged":[[0,0,0,4],[18,10,18,11],[17,6,17,7],[1,6,1,7],[2,2,2,3],[5,2,5,3]]}
["Satser pr. ",null,null,null,null,"01.01.2016"]
[null,null,null,null,null,null,"Grundbeløb",null,"Månedligt beløb pr.",{"$f":"F1","v":"01.01.2016"}]
[null,null,null,null,null,"Grundlønstillæg - lærer",3000,null,{"$f":"G3*C26/12","v":329.4495}]
[null,null,null,null,null,"Anciennitetstillæg - lærer",10000,null,{"$f":"G4*C26/12","v":1098.165}]
[null,null,null,null,null,"Stillingstillæg - lærer",null,13000,{"$f":"H5*C26/12","v":1427.6144999999999}]
["Løntrin ","Pr. måned","Anciennitetstillæg",null,null,"Pension - stillingstilæg lærer",null,2202,{"$f":"H6*C26/12","v":241.815933},"Beløbet er 17,3% af 13.000 fratrukket særlig ferie"]
[27,24885.33,null,null,null,"Grundlønstillæg - børnehaveklasseleder",2000,null,{"$f":"G7*C26/12","v":219.63300000000001}]
[28,25278.92,null,null,null,"Anciennitetstillæg - børnehaveklasseleder",7000,null,{"$f":"G8*C26/12","v":768.71549999999991}]
[29,25680.83,null,null,null,"Undervisertillæg, lærere Ny Løn",13000,null,{"$f":"G9*C26/12","v":1427.6144999999999}]
[30,26090.67,"27-30",{"$f":"B10-B7","v":1205.3399999999965},null,"Undervisertillæg, lærere Anciennitetsløn",5500,null,{"$f":"G10*C26/12","v":603.99075000000005}]
[31,26509.33,"30-31",{"$f":"B11-B10","v":418.66000000000349},null,"Undervisertillæg, børehaveklasseledere, Ny Løn",15400,null,{"$f":"G11*C26/12","v":1691.1741000000002}]
[32,26936.5,"27-32",{"$f":"B12-B7","v":2051.1699999999983},null,"Undervisertillæg, børehaveklasseledere, Anciennitetsløn",7900,null,{"$f":"G12*C26/12","v":867.55034999999998}]
[33,27372.42,null,null,null,"Centralt lærertillæg",2800,3250,{"$f":"G13*C26/12","v":307.4862},{"$f":"H13*C26/12","v":356.90362499999998}]
[34,27817.75,"30 - 34",{"$f":"B14-B10","v":1727.0800000000017},null,null,null,"(tjenestemænd)",null,"(tjenestemænd)"]
[35,28271.58]
[36,28735.08,"35 - 36",{"$f":"B16-B15","v":463.5}]
[37,29207.75]
[38,29711.919999999998,null,null,null,null,"Grundbeløb",null,"Månedligt beløb pr.",{"$f":"F1","v":"01.01.2016"}]
[39,30214.080000000002,"30 - 39",{"$f":"B19-B10","v":4123.4100000000035},null,"Funktions- og kvalifikationsløn: ","Ny Løn","Anciennitetsløn","Ny Løn","Anciennitetsløn"]
[40,30726.75,null,null,null,"Nyt Odense tillæg",10100,10100,{"$f":"ROUND(G20*$C$26/12,2)","v":1109.1500000000001},{"$f":"ROUND(H20*$C$26/12,2)","v":1109.1500000000001}]
[41,31249.58,null,null,null,"Mange 2-sprogede elever",4200,3100,461.23,340.43]
[42,31782.83,null,null,null,"Kl. lærer/bh.kl.leder >27",4200,3100,461.23,340.43]
[43,32489.25,"42 - 43",{"$f":"B23-B22","v":706.41999999999825},null,"Kontaktperson til elevråd",3100,3100,340.43,340.43]
[null,null,null,null,null,"Obs-klasser",4200,4200,461.23,461.23]
[null,null,null,null,null,"Flere/skiftende arbejdssteder",3100,3100,340.43,340.43]
["Reguleringsfaktor:",null,1.317798,null,null,"TR-tillæg",5000,5000,549.08000000000004,549.08000000000004]
[null,null,null,null,null,"valgområde - mere end 35 ansatte",1000,1000,109.82,109.82]
[null,null,null,null,null,"AMR funktion",5000,5000,549.08000000000004,549.08000000000004]
[null,null,null,null,null,"Spec-uv skolebørn",18600,18600,2042.59,2042.59]
[]
[null,null,null,null,null,"Specialv./erfaring fra Vollsmose skoler",3600,3600,{"$f":"ROUND(G31*$C$26/12,2)","v":395.34},{"$f":"ROUND(H31*$C$26/12,2)","v":395.34}]
[null,null,null,null,null,"Pæd. Diplomudd./Masterudd.",7500,7500,{"$f":"ROUND(G32*$C$26/12,2)","v":823.62},{"$f":"ROUND(H32*$C$26/12,2)","v":823.62},"Tjenestemænd dog 1 trin"]
[]
[]
[null,null,null,null,null,"Undervisnings- og specialundervisningstillæg m.m. "]
[null,null,null,null,null,"uv-tillæg > 750",90,90,{"$f":"ROUND(G36*$C$26,2)","v":118.6},118.6]
[null,null,null,null,null,"tale/høre tillæg",25.84,25.84,34.049999999999997,34.049999999999997]
[null,null,null,null,null,"Spec-skole uv-tillæg",18.920000000000002,18.920000000000002,24.93,24.93]
[]
[null,null,null,null,null,"to-sprogede elever",18.920000000000002,18.920000000000002,{"$f":"ROUND(G40*$C$26,2)","v":24.93},{"$f":"ROUND(H40*$C$26,2)","v":24.93}]